Cogmind - Beta 16 @@@ ROGUE MODE // 2026.02.05 @ 08:36:39 Player: shapeshifter Result: Destroyed by Warlord with Compact HERF Cannon Performance ------------- Evolutions (5) 2500 Regions Visited (15) 3000 Robots Destroyed (100) 500 Value Destroyed (3531) 3531 Prototype IDs (24) 480 Alien Tech Used (0) 0 Bonus (4294) 4294 TOTAL SCORE: 14305 Bonus ------- High Alert Combat Kills 149 Follower Combat Kills 2738 Network Hubs Disabled 600 Met Imprinter 300 Was Imprinted 300 Met Warlord at Base 500 Built Enhanced Grunts 300 A7 Reached Mainframe 300 Met R17 at Cetus 500 Friendly Fire -1393 Cogmind --------- Core Integrity 0/1000 Matter 170/300 Energy 67/100 System Corruption 2% Temperature Cool (-200) Movement Treading (170) Location -5/Warlord Parts ------- > --- POWER (2) -------- (None) > --- PROPULSION (6) --- Armored Medium Treads Experimental Myomer Leg > --- UTILITY (7) ------ Advanced Cryofiber Web Advanced Heat Sink Medium Storage Unit Core Analyzer > --- WEAPON (2) ------- (None) > --- INVENTORY (10) --- Tactical Coordination Suite Precision Matter Filter Long-range Tractor Beam Hacking Drone Bay (1/1) Advanced Datajack Improved Remote Datajack CR-A16's Pointy Stick Peak State ------------ > --- POWER ------------ Reinforced Deuterium Engine Quantum Reactor > --- PROPULSION ------- Improved Medium Treads Centrium Heavy Treads Centrium Heavy Treads > --- UTILITY ---------- Advanced Heat Sink Large Storage Unit Advanced Terrain Scan Processor Centrium Medium Armor Plating Centrium Medium Armor Plating Centrium Medium Armor Plating > --- WEAPON ----------- Heavy Plasma Cannon Heavy Plasma Cannon > --- INVENTORY -------- Tactical Coordination Suite Hacking Drone Bay Advanced Variable Charge Gun Advanced Variable Charge Gun Heavy Plasma Cannon Advanced KE Penetrator Thermoblaster Advanced Datajack CR-A16's Pointy Stick [Rating: 107] Favorites ----------- Power Improved Deuterium Engine Engine Improved Deuterium Engine Power Core Neutrino Core Reactor Light Antimatter Reactor Propulsion Light Treads Treads Light Treads Leg Flexi-carbon Leg Wheel Armored Huge Wheel Hover Unit Gravmag Array Flight Unit VTOL Module Utility Advanced Terrain Scan Processor Device Improved Terrain Scanner Storage Small Storage Unit Processor Advanced Terrain Scan Processor Hackware Experimental Hacking Suite Protection Makeshift Ablative Armor Weapon Spread Laser Energy Gun Spread Laser Energy Cannon Heavy Plasma Cannon Ballistic Gun High-powered Shotgun Ballistic Cannon Enhanced Gauss Cannon Launcher Thermoblaster Special Weapon Molecular Deconstructor Piercing Weapon CR-A16's Pointy Stick Build | -11 -10 -10 -9 -9 -7 -6 -6 -6 -6 -6 -6 -5 -5 -5 -5 ------- Run | Yrd Mat Min Mat Min Zio Pro Fac Ext Cet Arc Hub Fac Upp Upp War Slots Evolved 10 | . . . 2 . . . 6 . . . . 2 . . . Power 1 | . . . . . . . 1 . . . . . . . . Propulsion 4 | . . . 1 . . . 2 . . . . 1 . . . Utility 5 | . . . 1 . . . 3 . . . . 1 . . . Weapon . | . . . . . . . . . . . . . . . . Parts Attached 123 | 7 . 2 5 1 10 10 16 12 6 4 9 18 7 8 8 Power 17 | 1 . . 1 . . 1 4 1 . 1 1 2 2 2 1 Engine 12 | 1 . . 1 . . . 3 1 . . . 2 2 2 . Core 2 | . . . . . . . 1 . . 1 . . . . . Reactor 3 | . . . . . . 1 . . . . 1 . . . 1 Propulsion 28 | 2 . . 2 . 2 4 3 2 2 . 1 5 2 2 1 Treads 17 | 2 . . 2 . . 4 3 2 2 . . . 1 1 . Leg 3 | . . . . . . . . . . . . . 1 1 1 Wheel 4 | . . . . . 1 . . . . . . 3 . . . Hover 3 | . . . . . . . . . . . 1 2 . . . Flight 1 | . . . . . 1 . . . . . . . . . . Utility 46 | 2 . . 1 1 4 5 5 7 2 1 4 5 2 3 4 Device 21 | 1 . . . 1 2 . 2 4 1 1 2 2 1 2 2 Storage 5 | 1 . . . . . . 1 2 . . . 1 . . . Processor 8 | . . . . . 1 3 1 . . . . 2 . . 1 Hackware 1 | . . . . . . 1 . . . . . . . . . Protection 11 | . . . 1 . 1 1 1 1 1 . 2 . 1 1 1 Artifact . | . . . . . . . . . . . . . . . . Weapon 32 | 2 . 2 1 . 4 . 4 2 2 2 3 6 1 1 2 Energy Gun 8 | . . . 1 . 2 . 3 . 1 . 1 . . . . Energy Cannon 6 | . . . . . . . . 2 . 1 2 1 . . . Ballistic Gun 9 | 2 . 2 . . . . . . 1 1 . 2 . 1 . Ballistic Cannon 1 | . . . . . . . . . . . . . 1 . . Launcher 3 | . . . . . 1 . 1 . . . . 1 . . . Special Weapon 2 | . . . . . . . . . . . . . . . 2 Impact Weapon . | . . . . . . . . . . . . . . . . Slashing Weapon . | . . . . . . . . . . . . . . . . Piercing Weapon 3 | . . . . . 1 . . . . . . 2 . . . Special Melee Weapon . | . . . . . . . . . . . . . . . . Unidentified Prototypes 24 | . . . 1 . 2 4 4 1 4 1 . 2 1 . 4 Corrupted Parts 3 | . . . . . . 3 . . . . . . . . . System Corruption 12 | . . . . . . 12 . . . . . . . . . Parts Lost 45 | . . . . 3 . 2 1 3 . . 12 4 6 7 7 Power 9 | . . . . . . 1 . 1 . . 2 . 2 2 1 Propulsion 13 | . . . . 2 . . . 1 . . 3 2 2 1 2 Utility 13 | . . . . 1 . 1 . 1 . . 5 . 1 3 1 Weapon 10 | . . . . . . . 1 . . . 2 2 1 1 3 Highest Loss Streak 7 | . . . . 1 . 1 1 2 . . 7 2 6 4 7 To Critical Strikes . | . . . . . . . . . . . . . . . . Average Backups 9 | 1 3 4 7 7 7 7 7 11 14 15 12 5 9 9 9 Power . | . 1 . . . . . . . . 1 . . . . . Propulsion . | . . . . 1 . . . . . . . . . . . Utility 4 | . 1 2 3 3 4 4 4 5 4 5 4 2 6 5 4 Weapon 3 | . 1 2 2 3 3 2 3 5 7 8 6 2 1 2 2 Tool/Special . | . . . . . . . . . . . . . . . . Unused Backups 26 | . . 2 2 . 4 1 . 3 4 1 . 1 3 2 3 Power 2 | . . 1 . . . . . . . . . . 1 . . Propulsion 1 | . . . . . . . . . . 1 . . . . . Utility 14 | . . . . . 3 1 . 1 3 . . . 2 2 2 Weapon 8 | . . 1 2 . 1 . . 2 1 . . 1 . . . Tool/Special 1 | . . . . . . . . . . . . . . . 1 Average Slot Usage (%) 85 | . 100 100 97 83 82 87 95 99 85 86 80 55 74 64 71 Engine 9 | . 14 14 11 11 11 3 7 12 13 7 5 2 11 6 7 Reactor 1 | . . . . . . 5 3 . . . . . . . . Treads 18 | . 28 28 31 27 11 14 30 32 21 20 18 . 4 . 4 Leg 1 | . . . . . . . . . . . . . 4 10 11 Wheel 2 | . . . . . 8 8 . . . . . 3 . . . Device 12 | . 14 14 11 7 11 8 5 16 20 20 17 13 11 8 7 Storage 7 | . 14 14 11 11 11 10 6 6 6 6 5 2 5 5 5 Processor 8 | . . . . . 2 11 12 9 6 6 6 14 17 17 18 Protection 4 | . . . 11 4 5 1 13 6 5 5 7 . 3 3 3 Energy Gun 4 | . . . . . 5 22 12 3 . . . . . . . Energy Cannon 3 | . . . . . . . . 8 10 5 11 . 5 . . Ballistic Gun 6 | . 28 28 21 22 14 . . . . 7 . 6 . 4 3 Peak Build Rating 107 | 7 7 14 19 18 32 38 66 72 96 103 107 60 65 64 105 Average Rating 49 | 5 7 8 18 15 23 31 58 65 88 100 92 44 61 49 61 On Entrance 39 | . 7 7 14 18 14 28 35 66 65 95 103 20 52 64 45 Avg Prop Armor Cover (%) 8 | . . . . . 7 11 . 5 6 . . 7 4 13 9 Naked Turns . | . . . . . . . . . . . . . . . . Heaviest Build 97 | 13 13 16 28 28 41 31 56 79 79 82 97 31 47 52 61 Greatest Support 190 | 40 40 40 60 60 28 68 126 126 190 190 190 44 70 70 60 Greatest Overweight (x) 7 | . . . . 1 1 7 . . . . . 1 . 2 1 Average Overweight (x) . | . . . . . . . . . . . . . . . . Largest Inventory Capacity 15 | 8 8 8 8 8 8 8 10 15 15 15 15 10 10 10 10 Average Capacity 10 | 7 8 8 8 8 8 7 9 12 15 15 14 7 10 10 10 Most Carried 15 | 5 3 8 8 8 8 8 10 15 15 15 15 9 10 10 10 Average Carried 9 | 2 3 5 7 7 7 7 8 11 14 14 12 5 9 9 9 Final Capacity 15 | 8 8 8 8 8 8 8 10 15 15 15 5 10 10 10 10 Final Carried 15 | 3 3 7 8 7 8 8 10 13 15 15 5 8 10 10 7 Class Distribution -------------------- 43% | Mutant 22% | Scavenger-Mutant 18% | Commander-Mutant 4% | Skirmisher 3% | Commander-Skirmisher 3% | Scout Dominant Class ---------------- Mutant | -10/Materials Mutant | -10/Mines Mutant | -9/Materials Mutant | -9/Mines Mutant | -7/Zion Mutant | -6/Proximity Caves Scavenger-Mutant | -6/Factory Commander-Mutant | -6/Extension Commander-Mutant | -6/Cetus Commander-Mutant | -6/Archives Commander-Mutant | -6/Hub_04(d) Scout | -5/Factory Skirmisher | -5/Upper Caves Scavenger-Mutant | -5/Upper Caves Scavenger-Mutant | -5/Warlord Resources | -11 -10 -10 -9 -9 -7 -6 -6 -6 -6 -6 -6 -5 -5 -5 -5 ----------- Run | Yrd Mat Min Mat Min Zio Pro Fac Ext Cet Arc Hub Fac Upp Upp War Matter Collected 2985 | 309 . 183 77 194 197 169 279 294 154 134 85 460 75 375 . Remotely . | . . . . . . . . . . . . . . . . Salvage Created 4390 | 106 . 260 149 203 . 243 288 807 50 199 730 600 401 354 . Parts 186 | 7 . 22 8 11 . 8 14 24 . 14 26 27 9 16 . Haulers Intercepted 4 | . . . . . . . 1 2 . . . . 1 . . Recyclers Shooed 3 | . . 2 . . . . . . . . . 1 . . . Parts Field Recycled . | . . . . . . . . . . . . . . . . Retrieved Matter . | . . . . . . . . . . . . . . . . Parts Self-Destructed 37 | . . . . . 3 10 . . . . . . 10 14 . Prevented 5 | . . . . . . 5 . . . . . . . . . Parts Restored . | . . . . . . . . . . . . . . . . Kills | -11 -10 -10 -9 -9 -7 -6 -6 -6 -6 -6 -6 -5 -5 -5 -5 ------- Run | Yrd Mat Min Mat Min Zio Pro Fac Ext Cet Arc Hub Fac Upp Upp War Combat Hostiles Destroyed 64 | . . 8 3 9 . 5 3 9 1 1 1 9 6 9 . Guns 42 | . . 8 3 9 . 5 3 3 . . . 5 . 6 . Cannons 14 | . . . . . . . . 4 1 1 . 1 4 3 . AOE 4 | . . . . . . . . . . . . 3 1 . . Classes Destroyed 18 | 1 . 2 2 2 . 2 5 1 . . . 2 1 . . Worker 3 | . . . . . . . 2 . . . 1 . . . . Tunneler 5 | 4 . 1 . . . . . . . . . . . . . Hauler 4 | . . . . . . . 1 2 . . . . 1 . . Recycler 2 | . . . . . . . . . . . . 2 . . . Minesweeper 1 | . . . . . . . . . . . . . 1 . . Mechanic 2 | . . . . . . . 1 . . . . 1 . . . Operator 6 | . . . . . . . 1 . . 4 1 . . . . Watcher 1 | . . . 1 . . . . . . . . . . . . Swarmer 17 | . . 3 . 3 . . 1 . . . . 5 . 5 . Saboteur 1 | . . . . . . . . . . . . 1 . . . Grunt 22 | . . 5 1 3 . 1 . 1 . . . 2 5 4 . Duelist 2 | . . . . 2 . . . . . . . . . . . Sentry 10 | . . . 2 . . . . 6 . 1 1 . . . . Demolisher 1 | . . . . 1 . . . . . . . . . . . Hunter 3 | . . . . . . . . 2 . . . 1 . . . Programmer 4 | . . . . . . 1 2 . . . . . 1 . . Cetus Guard 1 | . . . . . . . . . 1 . . . . . . Enhanced Grunt 2 | . . . . . . . . . . . 2 . . . . Z-Light 2 | . . . . . . . 1 . . . 1 . . . . Thug 2 | . . . . . . 1 . 1 . . . . . . . Savage 2 | . . . . . . 2 . . . . . . . . . Butcher 2 | . . . . . . . . . . . 2 . . . . Guerrilla 5 | . . . . . . . . . . . 5 . . . . Best Kill Streak 5 | 2 . 3 2 3 . 3 1 3 1 2 2 5 4 4 . Combat Bots Only 5 | . . 3 1 3 . 3 1 3 1 1 1 5 4 4 . Max Kills in Single Turn 4 | 1 . 1 1 1 . 1 1 2 1 1 4 2 1 1 . Gunslinging 1 | . . . . . . . . . . . . 1 . . . Exploded 2 | . . . . . . . . . . . . 2 1 . . Melee . | . . . . . . . . . . . . . . . . Uniques/NPCs Destroyed . | . . . . . . . . . . . . . . . . Combat | -11 -10 -10 -9 -9 -7 -6 -6 -6 -6 -6 -6 -5 -5 -5 -5 -------- Run | Yrd Mat Min Mat Min Zio Pro Fac Ext Cet Arc Hub Fac Upp Upp War Hostile Shots Fired 874 | . . 46 18 50 . 28 31 121 3 . 219 79 51 81 147 Missed 253 | . . 10 6 11 . 9 11 42 2 . 76 22 16 21 27 Hits 621 | . . 36 12 39 . 19 20 79 1 . 143 57 35 60 120 Melee 18 | . . . . 4 . 1 . . . . . . . . 13 Projectile 603 | . . 36 12 35 . 18 20 79 1 . 143 57 35 60 107 AOE 9 | . . . . 9 . . . . . . . . . . . Critical Strikes 43 | . . . . 2 . 2 1 . 1 . 14 3 3 2 15 Part Disruptions 4 | . . . . . . 1 . . . . 2 . . . 1 Damage Taken 11795 | . . 347 161 770 . 294 487 1087 135 66 3636 940 659 926 2287 Core 1936 | . . 37 . 105 . 34 14 67 9 . 650 122 150 119 629 Absorbed by Shields 231 | . . . . . . . . 187 44 . . . . . . Ignored by Resistances 460 | . . . . . . . . . . . . . 26 80 354 Regen/Repaired (Parts) 116 | . . . . . . . . . . . . . . . 116 Core Remaining (%) 65 | 100 . 85 . . . 65 . . . . 12 . . . . Volleys Fired 272 | 9 3 25 15 24 . 18 26 29 3 19 17 25 28 24 7 Largest 2 | 2 2 2 2 2 . 2 2 2 2 2 2 2 2 2 2 Hottest 260 | 40 40 40 58 58 . 130 150 180 180 180 180 260 260 147 133 Shots Fired 507 | 18 6 50 30 48 . 38 53 59 6 39 28 45 35 44 8 Gun 331 | 18 6 50 30 48 . 38 53 12 . 16 . 41 . 18 1 Cannon 167 | . . . . . . . . 47 6 23 28 2 34 26 1 Launcher 3 | . . . . . . . . . . . . 2 1 . . Special 6 | . . . . . . . . . . . . . . . 6 Kinetic 258 | 18 6 50 30 48 . . . . . 16 . 41 7 41 1 Thermal 243 | . . . . . . 38 53 59 6 23 28 4 28 3 1 Explosive . | . . . . . . . . . . . . . . . . Electromagnetic . | . . . . . . . . . . . . . . . . Robot Hit Streak 18 | 3 1 6 4 6 . 11 18 14 3 4 4 7 7 5 5 Robot Miss Streak 7 | 3 3 6 5 5 . 6 6 4 1 2 3 4 3 7 1 Penetration Max 1 | . . . . . . . . . . 1 . 1 . 1 . Secondary Targets 7 | . . 1 . 4 . 1 . . . . . 1 . . . Max Gunslinging Chain 1 | . . 1 . 1 . 1 . . . . . 1 . . . Shots Hit Robots 317 | 9 1 23 18 30 . 36 41 46 4 22 9 28 23 21 6 Core Hits 263 | 4 1 13 5 17 . 51 42 34 2 11 26 21 16 18 2 Critical Kills 17 | . . 1 1 . . . . . . 2 . 7 . 6 . Critical Parts Destroyed 7 | . . . . . . . . . . 3 . 3 . 1 . Critical Strikes 29 | . . 1 1 . . . . 3 . 5 . 10 . 9 . Destroy 24 | . . 1 1 . . . . . . 5 . 10 . 7 . Blast 2 | . . . . . . . . . . . . . . 2 . Impale 3 | . . . . . . . . 3 . . . . . . . Melee Attacks 27 | . . . . . . 1 1 9 . . 1 13 2 . . Impact . | . . . . . . . . . . . . . . . . Slashing . | . . . . . . . . . . . . . . . . Piercing 27 | . . . . . . 1 1 9 . . 1 13 2 . . Sneak Attacks 1 | . . . . . . . . . . . . . 1 . . Combat Hostiles . | . . . . . . . . . . . . . . . . Follow-up Attacks . | . . . . . . . . . . . . . . . . Damage Inflicted 9458 | 116 14 317 350 599 . 511 689 1555 190 880 1961 584 1079 561 52 Guns 3451 | 116 14 317 350 599 . 511 689 294 . 292 . 178 . 85 6 Cannons 3519 | . . . . . . . . 1070 190 588 318 42 789 476 46 Explosions 2203 | . . . . . . . . . . . 1643 364 196 . . Melee 285 | . . . . . . . . 191 . . . . 94 . . Ramming . | . . . . . . . . . . . . . . . . Kinetic 2267 | 116 14 317 350 599 . . . . . 292 . 178 . 395 6 Thermal 5037 | . . . . . . 511 689 1364 190 588 349 149 985 166 46 Explosive 257 | . . . . . . . . . . . . 257 . . . Electromagnetic 1612 | . . . . . . . . . . . 1612 . . . . Impact . | . . . . . . . . . . . . . . . . Slashing . | . . . . . . . . . . . . . . . . Piercing 285 | . . . . . . . . 191 . . . . 94 . . Highest Corruption 29 | . . . . . . 15 3 3 3 3 29 . . . 2 Average Corruption 4 | . . . . . . 7 2 3 3 2 10 . . . 1 Corruption Purged 3 | . . . . . . . . . . 3 . . . . . Corruption Blocked . | . . . . . . . . . . . . . . . . Effects 103 | . . . . . . 30 10 34 14 5 10 . . . . Message Errors 25 | . . . . . . 6 1 13 2 1 2 . . . . Matter Fused 22 | . . . . . . 7 3 6 4 1 1 . . . . Heat Flow Errors 20 | . . . . . . 5 2 7 4 1 1 . . . . Energy Discharges 3 | . . . . . . 1 1 1 . . . . . . . Parts Fused 3 | . . . . . . 1 . 1 . 1 . . . . . Data Loss (minor) 15 | . . . . . . 3 2 3 4 . 3 . . . . Data Loss (major) 4 | . . . . . . 3 . 1 . . . . . . . Misfires 5 | . . . . . . 2 1 1 . 1 . . . . . Alerts 3 | . . . . . . 2 . 1 . . . . . . . Misdirections 3 | . . . . . . . . . . . 3 . . . . Overload Shots . | . . . . . . . . . . . . . . . . Overflow Damage 156 | . . . . . . . . 7 . . 41 45 49 14 . Projectiles 70 | . . . . . . . . 7 . . . . 49 14 . Explosions 86 | . . . . . . . . . . . 41 45 . . . Melee . | . . . . . . . . . . . . . . . . Knockbacks 4 | . . . . . . . . . . . . . . 4 . Impact . | . . . . . . . . . . . . . . . . Kinetic 4 | . . . . . . . . . . . . . . 4 . Secondary . | . . . . . . . . . . . . . . . . Self-Inflicted Damage 290 | . . . . . . . . . . . 290 . . . . Shots 3 | . . . . . . . . . . . 3 . . . . Rammed . | . . . . . . . . . . . . . . . . Targets Rammed . | . . . . . . . . . . . . . . . . Kicked . | . . . . . . . . . . . . . . . . Crushed . | . . . . . . . . . . . . . . . . Highest Temperature 404 | . . 16 60 34 . 369 200 200 225 237 404 351 324 327 . Average Temperature 104 | . . 8 17 13 . 127 91 99 76 89 149 155 112 216 . Received Heat Transfer 1644 | . . 105 66 120 . 27 9 136 14 9 193 183 311 237 234 Effects 11 | . . . . . . 2 . 4 . . 4 . . 1 . Shutdowns 1 | . . . . . . . . . . . 1 . . . . Interference 7 | . . . . . . . . 4 . . 3 . . . . Damage (minor) 3 | . . . . . . 2 . . . . . . . 1 . Siege Activations . | . . . . . . . . . . . . . . . . Martial Activations . | . . . . . . . . . . . . . . . . Shielding Activations . | . . . . . . . . . . . . . . . . Robots Disrupted . | . . . . . . . . . . . . . . . . Combat Hostiles . | . . . . . . . . . . . . . . . . Robots Corrupted 5 | . . . . . . . . . . . 5 . . . . Combat Hostiles 1 | . . . . . . . . . . . 1 . . . . Parts Fried 7 | . . . . . . . . . . . 7 . . . . Impact Corruptions . | . . . . . . . . . . . . . . . . Robots Melted 1 | . . . . . . . . 1 . . . . . . . Combat Hostiles 1 | . . . . . . . . 1 . . . . . . . Parts Melted 20 | . . . . . . . 4 11 . . . 1 4 . . Heat Transferred 6088 | . . . . . . 605 930 1625 175 600 400 290 1245 200 18 Parts Sabotaged . | . . . . . . . . . . . . . . . . Parts Stolen . | . . . . . . . . . . . . . . . . Parts Stripped . | . . . . . . . . . . . . . . . . Power Chain Reactions 3 | . . . . . . . . . . . 3 . . . . Alert | -11 -10 -10 -9 -9 -7 -6 -6 -6 -6 -6 -6 -5 -5 -5 -5 ------- Run | Yrd Mat Min Mat Min Zio Pro Fac Ext Cet Arc Hub Fac Upp Upp War Maximum Alert Level 4 | . . . . . . . 2 2 2 1 4 2 . . . Low Security (%) 50 | 100 100 100 100 100 . . . 60 18 1 52 . . . . Level 1 24 | . . . . . . . . 37 71 98 12 . . . . Level 2 21 | . . . . . . . 100 1 10 . 5 100 . . . Level 3 1 | . . . . . . . . . . . 14 . . . . Level 4 1 | . . . . . . . . . . . 15 . . . . Level 5 . | . . . . . . . . . . . . . . . . High Security . | . . . . . . . . . . . . . . . . Max Security . | . . . . . . . . . . . . . . . . Peak Influence 1256 | 10 . 75 40 85 . . 599 402 432 371 1256 633 . . . Initial 575 | . . . . 1 . . 450 241 213 163 90 575 . . . Average 247 | 1 . 19 10 31 . . 511 184 260 309 444 556 . . . Influence Increases 6040 | 20 . 210 143 230 . 138 986 945 636 276 1732 364 130 230 . Destroy 0b10 Robot/C 2480 | . . 160 60 180 . 80 280 440 280 80 400 220 120 180 . Destroy 0b10 Robot/NC 175 | 20 . 5 5 . . . 35 35 10 20 20 15 10 . . Destroy Leader 368 | . . 30 32 40 . 20 72 42 10 . 82 20 . 20 . Allied During Kill 1330 | . . . . . . 38 66 378 300 100 422 26 . . . Successful Hack 20 | . . . 15 5 . . . . . . . . . . . Select Force Hacks 30 | . . . 30 . . . . . . . . . . . . Disable Machine 450 | . . 15 . . . . 60 15 . 60 255 45 . . . Anti-Garrison Action 150 | . . . . . . . . . . . 150 . . . . Destroy Structure 437 | . . . 1 5 . . 8 20 36 16 313 38 . . . Advance Influence 450 | . . . . . . . 450 . . . . . . . . Lose Combat Pursuer 150 | . . . . . . . 15 15 . . 90 . . 30 . Influence Decreases 6040 | 20 . 210 138 223 12 138 492 1057 609 426 816 938 731 230 . Entered New Map 1676 | . . . . 4 12 . . 253 169 246 169 600 223 . . Time Decay 3389 | 20 . 210 138 189 . 138 362 574 380 180 332 238 448 180 . Search Patrol Dispatched 100 | . . . . . . . 100 . . . . . . . . Lost Part 340 | . . . . 30 . . 10 30 . . 120 40 60 50 . Lost Ally 535 | . . . . . . . 20 200 60 . 195 60 . . . Squads Dispatched 19 | . 1 1 2 . . . 4 . . . 8 3 . . . Investigation 6 | . . 1 1 . . . 1 . . . 1 2 . . . Extermination 2 | . . . . . . . 1 . . . 1 . . . . Reinforcement 4 | . 1 . 1 . . . 1 . . . 1 . . . . Assault 4 | . . . . . . . 1 . . . 2 1 . . . Garrison 3 | . . . . . . . . . . . 3 . . . . Intercept . | . . . . . . . . . . . . . . . . Searches Triggered 1 | . . . . . . . 1 . . . . . . . . Construction Impeded . | . . . . . . . . . . . . . . . . Haulers Reinforced 1 | . . . . . . . 1 . . . . . . . . Active Scanning Responses . | . . . . . . . . . . . . . . . . Cargo Convoy Interrupts . | . . . . . . . . . . . . . . . . Stealth | -11 -10 -10 -9 -9 -7 -6 -6 -6 -6 -6 -6 -5 -5 -5 -5 --------- Run | Yrd Mat Min Mat Min Zio Pro Fac Ext Cet Arc Hub Fac Upp Upp War Distress Signals 11 | . . . 1 . . 1 . 2 2 . 5 . . . . Communications Jammed . | . . . . . . . . . . . . . . . . Distress Signals . | . . . . . . . . . . . . . . . . Times Spotted 213 | . 1 8 9 11 . 12 14 23 17 23 44 16 14 11 10 Peak Tracking Total 17 | . 1 3 4 3 . 6 4 5 5 2 17 5 9 5 10 Tactical Retreats 7 | . . . . . . . 1 1 . . 3 . . 2 . Traps | -11 -10 -10 -9 -9 -7 -6 -6 -6 -6 -6 -6 -5 -5 -5 -5 ------- Run | Yrd Mat Min Mat Min Zio Pro Fac Ext Cet Arc Hub Fac Upp Upp War Traps Triggered 1 | . . . . . . . . 1 . . . . . . . Indirectly . | . . . . . . . . . . . . . . . . Trap Hack Attempts . | . . . . . . . . . . . . . . . . Triggered . | . . . . . . . . . . . . . . . . Disarmed . | . . . . . . . . . . . . . . . . Reprogrammed . | . . . . . . . . . . . . . . . . Reused 1 | . . . . . . . . . . . . . 1 . . Traps Extracted . | . . . . . . . . . . . . . . . . Installed 10 | . . . . . . . . . . . . . 10 . . Triggered 1 | . . . . . . . . . . . . . 1 . . Machines | -11 -10 -10 -9 -9 -7 -6 -6 -6 -6 -6 -6 -5 -5 -5 -5 ---------- Run | Yrd Mat Min Mat Min Zio Pro Fac Ext Cet Arc Hub Fac Upp Upp War Machines Disabled 33 | . . 1 . . . . 4 2 . 4 18 3 . 1 . Max in Single Turn 12 | . . 1 . . . . 1 1 . . 12 1 . 1 . Garrison Access 1 | . . . . . . . . . . . 1 . . . . Network Hub 3 | . . . . . . . . . . . 3 . . . . Machines Repaired . | . . . . . . . . . . . . . . . . Machines Dismantled . | . . . . . . . . . . . . . . . . Machines Sabotaged . | . . . . . . . . . . . . . . . . Overloaded Fab Kills . | . . . . . . . . . . . . . . . . Hacking | -11 -10 -10 -9 -9 -7 -6 -6 -6 -6 -6 -6 -5 -5 -5 -5 --------- Run | Yrd Mat Min Mat Min Zio Pro Fac Ext Cet Arc Hub Fac Upp Upp War Machines Accessed 9 | . . 1 3 1 . . 1 1 . . 1 1 . . . Terminals 2 | . . . 1 1 . . . . . . . . . . . Fabricators 1 | . . . . . . . . . . . . 1 . . . Repair Stations . | . . . . . . . . . . . . . . . . Recycling Units 2 | . . . 1 . . . . 1 . . . . . . . Scanalyzers 2 | . . . 1 . . . 1 . . . . . . . . Garrison Access 1 | . . . . . . . . . . . 1 . . . . Total Hacks 21 | . . 1 10 1 . . 3 1 . . 2 3 . . . Successful 12 | . . 1 6 1 . . 2 . . . . 2 . . . Failed 8 | . . . 4 . . . . 1 . . 2 1 . . . Catastrophic 1 | . . . . . . . . . . . 1 . . . . Database Lockouts 1 | . . . . . . . 1 . . . . . . . . Manual 59 | . . . 6 . . . 3 13 1 . 32 3 . 1 . Terminals 6 | . . . 5 1 . . . . . . . . . . . Fabricators 3 | . . . . . . . . . . . . 3 . . . Repair Stations . | . . . . . . . . . . . . . . . . Recycling Units 4 | . . . 3 . . . . 1 . . . . . . . Scanalyzers 5 | . . . 2 . . . 3 . . . . . . . . Garrison Access 2 | . . . . . . . . . . . 2 . . . . Terminal Hacks 3 | . . 1 1 1 . . . . . . . . . . . Open Door 1 | . . 1 . . . . . . . . . . . . . Branch Access Points 1 | . . . 1 . . . . . . . . . . . . Zone Layout 1 | . . . . 1 . . . . . . . . . . . Fabricator Hacks 2 | . . . . . . . . . . . . 2 . . . Load Schematic 1 | . . . . . . . . . . . . 1 . . . Build 1 | . . . . . . . . . . . . 1 . . . Repair Station Hacks . | . . . . . . . . . . . . . . . . Recycling Unit Hacks 1 | . . . 1 . . . . . . . . . . . . Retrieve Components 1 | . . . 1 . . . . . . . . . . . . Scanalyzer 4 | . . . 2 . . . 2 . . . . . . . . Retrieve Study 4 | . . . 2 . . . 2 . . . . . . . . Garrison Access Hacks . | . . . . . . . . . . . . . . . . Unauthorized Hacks 2 | . . . 2 . . . . . . . . . . . . Terminals 1 | . . . 1 . . . . . . . . . . . . Botnet 1 | . . . 1 . . . . . . . . . . . . Fabricators . | . . . . . . . . . . . . . . . . Repair Stations . | . . . . . . . . . . . . . . . . Recycling Units 1 | . . . 1 . . . . . . . . . . . . Tunnel 1 | . . . 1 . . . . . . . . . . . . Scanalyzers . | . . . . . . . . . . . . . . . . Garrison Access . | . . . . . . . . . . . . . . . . Data Cores Recovered . | . . . . . . . . . . . . . . . . Used . | . . . . . . . . . . . . . . . . Hacking Detections 5 | . . . 2 . . . . 1 . . 1 1 . . . Full Trace Events 2 | . . . . . . . . . . . 1 1 . . . Feedback Events . | . . . . . . . . . . . . . . . . Feedback Blocked . | . . . . . . . . . . . . . . . . Robot Schematics Acquired 3 | . . . . . . . . . . . 3 . . . . Robots Built . | . . . . . . . . . . . . . . . . Authchips . | . . . . . . . . . . . . . . . . Time . | . . . . . . . . . . . . . . . . Total Robot Build Rating . | . . . . . . . . . . . . . . . . Part Schematics Acquired 14 | . . . . . . . . . . . 14 . . . . Parts Built 2 | . . . . . . . . . . . . 2 . . . Authchips . | . . . . . . . . . . . . . . . . Time 47 | . . . . . . . . . . . . 47 . . . Total Part Build Rating 10 | . . . . . . . . . . . . 10 . . . Part Studies Acquired 4 | . . . 2 . . . 2 . . . . . . . . Parts Repaired . | . . . . . . . . . . . . . . . . Time . | . . . . . . . . . . . . . . . . Parts Recycled . | . . . . . . . . . . . . . . . . Recycled Matter . | . . . . . . . . . . . . . . . . Retrieved Matter . | . . . . . . . . . . . . . . . . Retrieved Components 3 | . . . 3 . . . . . . . . . . . . Parts Scanalyzed . | . . . . . . . . . . . . . . . . Part Schematics Acquired . | . . . . . . . . . . . . . . . . Parts Damaged . | . . . . . . . . . . . . . . . . Bothacking | -11 -10 -10 -9 -9 -7 -6 -6 -6 -6 -6 -6 -5 -5 -5 -5 ------------ Run | Yrd Mat Min Mat Min Zio Pro Fac Ext Cet Arc Hub Fac Upp Upp War Used RIF Installer . | . . . . . . . . . . . . . . . . Robots Hacked . | . . . . . . . . . . . . . . . . Non-combat . | . . . . . . . . . . . . . . . . Combat . | . . . . . . . . . . . . . . . . Robot Hacks Applied . | . . . . . . . . . . . . . . . . Relay Couplers Released 1 | . . . . . . . . . . . 1 . . . . Machine Destruction 1 | . . . . . . . . . . . 1 . . . . Fabnet Peak Effective % . | . . . . . . . . . . . . . . . . Robots Rewired 19 | . . . . . . . . 19 . . . . . . . Allies Hacked 1 | . . . . . . . 1 . . . . . . . . Hacks Repelled . | . . . . . . . . . . . . . . . . Allies | -11 -10 -10 -9 -9 -7 -6 -6 -6 -6 -6 -6 -5 -5 -5 -5 -------- Run | Yrd Mat Min Mat Min Zio Pro Fac Ext Cet Arc Hub Fac Upp Upp War Total Allies 53 | . . . . . 4 . 3 31 5 . 7 3 . . . Largest Group 21 | . . . . . 4 4 3 19 21 16 15 3 . . . Highest-Rated Group 1136 | . . . . . 157 157 210 753 1136 964 794 84 . . . Highest-Rated Ally 159 | . . . . . 41 41 70 159 159 143 96 28 . . . Zionite Dispatches 7 | . . . . . . . 1 2 . . 3 1 . . . Light 2 | . . . . . . . 1 . . . 1 . . . . Fire 1 | . . . . . . . . . . . . 1 . . . Hacker 2 | . . . . . . . . 1 . . 1 . . . . Demo 1 | . . . . . . . . 1 . . . . . . . Kinetic Resupply 1 | . . . . . . . . . . . 1 . . . . Total Orders 10 | . . . . . . . . 6 1 . 3 . . . . STAY 1 | . . . . . . . . . . . 1 . . . . DROP 1 | . . . . . . . . . . . 1 . . . . RETURN 8 | . . . . . . . . 6 1 . 1 . . . . Ally Attacks 511 | . . . . . . 39 49 133 98 42 139 11 . . . Total Damage 12989 | . . . . . . 1188 1437 3167 2630 1097 3326 144 . . . Kills 90 | . . . . . . 8 14 22 19 4 21 2 . . . Allies Corrupted 4 | . . . . . . . . . . . 4 . . . . Allies Melted . | . . . . . . . . . . . . . . . . Intel | -11 -10 -10 -9 -9 -7 -6 -6 -6 -6 -6 -6 -5 -5 -5 -5 ------- Run | Yrd Mat Min Mat Min Zio Pro Fac Ext Cet Arc Hub Fac Upp Upp War Active Infowar (turns) 9315 | 17 51 805 452 209 407 1248 738 1732 899 372 649 178 1144 414 . Sensors 2683 | . . . . . . . 738 754 . . . 35 1144 12 . Terrain 6905 | . . . . . 407 1248 . 1679 899 372 649 178 1059 414 . Seismic 1534 | 17 51 805 452 209 . . . . . . . . . . . Robot Analysis Total . | . . . . . . . . . . . . . . . . Derelict Logs Recovered 8 | . . 1 . 2 2 1 . . . . . . 1 1 . Drone Launches 8 | . . . . . . . . 6 1 . 1 . . . . Drone Recoveries 8 | . . . . . . . . 6 1 . 1 . . . . Zionite Intel Received 7 | . . . . . . . . 2 . . 5 . . . . Main Access 1 | . . . . . . . . . . . 1 . . . . Component Stockpiles 1 | . . . . . . . . . . . 1 . . . . Component Schematics 1 | . . . . . . . . . . . 1 . . . . Unaware Schematics 1 | . . . . . . . . . . . 1 . . . . Trap Installations 2 | . . . . . . . . 1 . . 1 . . . . Depthwide Sectors/-1 1 | . . . . . . . . 1 . . . . . . . Exploration | -11 -10 -10 -9 -9 -7 -6 -6 -6 -6 -6 -6 -5 -5 -5 -5 ------------- Run | Yrd Mat Min Mat Min Zio Pro Fac Ext Cet Arc Hub Fac Upp Upp War Turns Passed 12665 | 147 51 805 452 531 1618 1568 831 1742 899 372 779 510 1144 591 625 Spaces Moved 6832 | 81 27 432 237 279 1218 843 408 743 273 121 428 427 533 337 445 Core 102 | 23 . . . . . 6 . . . . 73 . . . . Treads 3810 | 58 27 432 237 279 217 159 408 743 273 121 353 . 501 2 . Legs 780 | . . . . . . . . . . . . . . 335 445 Wheels 1729 | . . . . . 1001 678 . . . . . 50 . . . Hover 411 | . . . . . . . . . . . 2 377 32 . . Flight . | . . . . . . . . . . . . . . . . Fastest Speed 50 | 50 160 160 160 160 100 100 164 160 160 160 50 60 66 120 110 Average Speed 137 | 128 160 160 160 161 121 115 165 162 160 160 140 70 154 137 127 Slowest Speed 400 | 160 160 160 160 200 200 400 170 164 160 160 160 110 160 260 190 Overloaded Moves . | . . . . . . . . . . . . . . . . Propulsion Burnouts . | . . . . . . . . . . . . . . . . Robots Hopped . | . . . . . . . . . . . . . . . . Potential Cave-ins . | . . . . . . . . . . . . . . . . Cave-ins Triggered . | . . . . . . . . . . . . . . . . Exploration Rate (%) 54 | 5 15 96 27 61 89 78 7 82 71 75 65 8 66 54 78 Regions Visited 15 Branch Regions 11 Pre-discovered Areas 10 | . . 1 1 1 2 . . 5 . . . . . . . Known Exits Taken 6 | . . . 1 . . . 1 . . . 1 1 1 1 . Unknown Exits Taken 9 | 1 1 1 . 1 1 1 . 1 1 1 . . . . . Scrap Searched 14 | . . 1 . . 4 3 . . . . . . 3 3 . Spaces Dug 166 | . . . . . . 1 . . . . 154 2 7 2 . Terrain Destroyed 582 | . . . 1 6 . 1 . 16 1 14 500 17 10 16 . Melee 4 | . . . . . . 1 . . . . 1 2 . . . Projectile 74 | . . . 1 6 . . . 16 1 14 10 . 10 16 . AOE 504 | . . . . . . . . . . . 489 15 . . . Terrain Rammed . | . . . . . . . . . . . . . . . . Walls Destroyed . | . . . . . . . . . . . . . . . . Machines Disabled . | . . . . . . . . . . . . . . . . Actions | -11 -10 -10 -9 -9 -7 -6 -6 -6 -6 -6 -6 -5 -5 -5 -5 --------- Run | Yrd Mat Min Mat Min Zio Pro Fac Ext Cet Arc Hub Fac Upp Upp War Total 9527 | 106 29 497 282 312 1358 1403 508 1194 731 261 573 561 803 419 490 Wait 1833 | . . 29 14 8 104 505 31 197 420 110 102 56 207 37 13 Move 6817 | 80 26 431 236 278 1217 842 407 742 272 120 427 426 532 336 445 Hop . | . . . . . . . . . . . . . . . . Pick Up 110 | 10 . 6 5 . 11 12 11 13 11 1 . 12 10 4 4 Fast Attach 54 | . . . 3 1 4 5 7 4 4 3 2 9 2 3 7 Attach 65 | 7 . . 1 1 4 6 7 5 1 . 7 8 7 5 6 Detach 8 | . . . . . 2 . . . . . 1 . 2 3 . Swap 64 | . . 2 2 . 4 4 7 19 6 3 7 7 . 3 . Drop 105 | . . 4 6 . 12 10 11 14 14 5 9 5 3 4 8 Fire 272 | 9 3 25 15 24 . 18 26 29 3 19 17 25 28 24 7 Melee 27 | . . . . . . 1 1 9 . . 1 13 2 . . Ram . | . . . . . . . . . . . . . . . . Kick . | . . . . . . . . . . . . . . . . Crush . | . . . . . . . . . . . . . . . . Escape Stasis . | . . . . . . . . . . . . . . . . Rewire 162 | . . . . . . . . 162 . . . . . . . Trap 10 | . . . . . . . . . . . . . 10 . . Miscellaneous . | . . . . . . . . . . . . . . . . Route ------- -11/Scrapyard -10/Materials -10/Mines (discovered 3 exits: *Mat x2 / [*Sub]) -9/Materials -9/Mines (discovered 4 exits: [*Mat x2] / [*Exi] / [*Zio]) -7/Zion -6/Proximity Caves -6/Factory -6/Extension (discovered 3 exits: *Fac x2 / *Cet) -6/Cetus (discovered 2 exits: *Fac / [*Arc]) -6/Archives (discovered 3 exits: Fac / *Hub x2) -6/Hub_04(d) (discovered 4 exits: *Fac x4) -5/Factory -5/Upper Caves -5/Upper Caves -5/Warlord History --------- Turn | Location | Event 4 | -11/Scrapyard | Discovered new exit (range 15) 148 | -11/Scrapyard | Entered Materials 189 | -10/Materials | Discovered new exit (range 5) 199 | -10/Materials | Entered Mines 277 | -10/Mines | Received a Rocket Launcher from a helpful Derelict 293 | -10/Mines | Discovered new exit (range 5) 304 | -10/Mines | Build established: Mutant 389 | -10/Mines | Discovered new exit (range 8) 491 | -10/Mines | Discovered new exit (range 13) 698 | -10/Mines | Met a Derelict shopkeep closing up shop 873 | -10/Mines | A weapon hastily lodged in a ceiling crevice suddenly fell to the ground 1004 | -10/Mines | Entered Materials 1004 | -9/Materials | Evolved 2 slots: Propulsion x1, Utility x1 1400 | -9/Materials | Discovered new exit (range 16) 1442 | -9/Materials | Identified exit to Mines 1456 | -9/Materials | Entered Mines 1468 | -9/Mines | Learned Materials security intel 1607 | -9/Mines | Learned location of Storage (-7) 1634 | -9/Mines | Discovered new exit (range 11) 1674 | -9/Mines | Discovered new exit (range 6) 1802 | -9/Mines | A Derelict revealed a hidden shortcut to a safe place 1825 | -9/Mines | Deemed a non-threat by the Exiles lab entrance 1825 | -9/Mines | Discovered new exit (range 5) 1942 | -9/Mines | Assembled infested the area 1987 | -9/Mines | Entered Zion 2164 | -7/Zion | Found CR-A16's Pointy Stick 2198 | -7/Zion | Discovered new exit (range 16) 2389 | -7/Zion | Learned location of Armory (-4) 2581 | -7/Zion | Met Imprinter 2712 | -7/Zion | Learned Factory machine intel 2723 | -7/Zion | Learned location of Extension (-6) 2988 | -7/Zion | Given the Hacking Drone Bay 2988 | -7/Zion | Found Prototype Device 2989 | -7/Zion | Identified Hacking Drone Bay 3013 | -7/Zion | Received a visual enhancement algorithm 3187 | -7/Zion | Found Prototype Processor 3190 | -7/Zion | Found Prototype Processor 3195 | -7/Zion | Found Prototype Processor 3202 | -7/Zion | Found Prototype Hackware 3204 | -7/Zion | Found Prototype Processor 3305 | -7/Zion | Imprinted 3307 | -7/Zion | Declared Zion's savior 3605 | -7/Zion | Entered Proximity Caves 3605 | -6/Proximity Caves | Accompanied by 4 allies 3707 | -6/Proximity Caves | Spotter reported a threat 3712 | -6/Proximity Caves | Spotter reported a threat 3759 | -6/Proximity Caves | Spotter reported a threat 3852 | -6/Proximity Caves | Encountered a Derelict sapper outpost 3866 | -6/Proximity Caves | Identified Exp. Armor Integrity Analyzer 3869 | -6/Proximity Caves | Identified Exp. Hacking Suite 3901 | -6/Proximity Caves | Identified Exp. Targeting Computer 3903 | -6/Proximity Caves | Identified Exp. Melee Analysis Suite (x2) 4265 | -6/Proximity Caves | Learned 4 Factory zone layouts 4290 | -6/Proximity Caves | Discovered new exit (range 10) 4826 | -6/Proximity Caves | Attacked by a faux Warlord 4917 | -6/Proximity Caves | System corruption reached 10% 5173 | -6/Proximity Caves | Entered Factory 5173 | -6/Factory | Accompanied by 2 allies 5173 | -6/Factory | Evolved 6 slots: Power x1, Propulsion x2, Utility x3 5175 | -6/Factory | Loaded intel: 314 machine locations 5289 | -6/Factory | Build established: Scavenger-Mutant 5480 | -6/Factory | Zion Light squad teleported in 5523 | -6/Factory | Search patrols dispatched 5760 | -6/Factory | Found Prototype Launcher 5760 | -6/Factory | Identified Rocket Array 5792 | -6/Factory | Central database locked down 5873 | -6/Factory | First assault squad dispatched 5986 | -6/Factory | Discovered new exit (range 11) 6001 | -6/Factory | Identified exit to Extension 6004 | -6/Factory | Entered Extension 6004 | -6/Extension | Accompanied by 2 allies 6107 | -6/Extension | Rescued A7 6461 | -6/Extension | Retrieved Zion intel report: Depthwide Sectors/-5 6461 | -6/Extension | Retrieved Zion intel report: Trap Installations 6462 | -6/Extension | Zion Hacker squad teleported in 6577 | -6/Extension | Rescued a captive Derelict 6623 | -6/Extension | Build established: Commander-Skirmisher 7020 | -6/Extension | Spotted B-75 Beast 7034 | -6/Extension | Spotted B-75 Beast 7044 | -6/Extension | Allies destroyed B-75 Beast 7054 | -6/Extension | Discovered new exit (range 8) 7074 | -6/Extension | Allies destroyed B-75 Beast 7105 | -6/Extension | Lost 8 allies 7285 | -6/Extension | Zion Demo squad teleported in 7332 | -6/Extension | Rescued a captive Derelict 7355 | -6/Extension | Build established: Scavenger-Mutant 7430 | -6/Extension | Rescued a captive Derelict 7431 | -6/Extension | Rescued a captive Derelict 7580 | -6/Extension | Rescued a captive Derelict 7581 | -6/Extension | Rescued a captive Derelict 7582 | -6/Extension | Terminal network hard line cut 7653 | -6/Extension | Discovered new exit (range 10) 7655 | -6/Extension | Discovered new exit (range 6) 7695 | -6/Extension | Build established: Commander-Mutant 7746 | -6/Extension | Entered Cetus 7746 | -6/Cetus | Accompanied by 18 allies (A7) 7751 | -6/Cetus | Acquired a Cetus Manufacturing Module code from A7 7815 | -6/Cetus | Spotted Cetus Guard 7815 | -6/Cetus | Spotted Cetus Guard 7817 | -6/Cetus | Spotted Cetus Guard 7817 | -6/Cetus | Spotted Cetus Guard 7820 | -6/Cetus | Allies destroyed Cetus Guard 7826 | -6/Cetus | Allies destroyed Cetus Guard 7828 | -6/Cetus | Allies destroyed Cetus Guard 7830 | -6/Cetus | Allies destroyed Cetus Guard 7937 | -6/Cetus | Started Cetus Manufacturing Module 7962 | -6/Cetus | Manufactured an Enhanced Grunt 7967 | -6/Cetus | Escorted A7 to Cetus Mainframe 7987 | -6/Cetus | Manufactured an Enhanced Grunt 8012 | -6/Cetus | Manufactured an Enhanced Grunt 8037 | -6/Cetus | Manufactured an Enhanced Grunt 8062 | -6/Cetus | Manufactured an Enhanced Grunt 8164 | -6/Cetus | Discovered new exit (range 15) 8192 | -6/Cetus | Spotted Cetus Guard 8192 | -6/Cetus | Spotted Cetus Guard 8196 | -6/Cetus | Spotted Cetus Guard 8202 | -6/Cetus | Spotted Cetus Guard 8210 | -6/Cetus | Allies destroyed Cetus Guard 8213 | -6/Cetus | Discovered new exit (range 16) 8215 | -6/Cetus | Allies destroyed Cetus Guard 8218 | -6/Cetus | Destroyed Cetus Guard 8225 | -6/Cetus | Allies destroyed Cetus Guard 8231 | -6/Cetus | Scared off Revision 17 8253 | -6/Cetus | Lost 3 allies 8496 | -6/Cetus | Security sweep announced 8645 | -6/Cetus | Entered Archives 8645 | -6/Archives | Accompanied by 16 allies (A7) 8650 | -6/Archives | Received a hacking code to weaken MAIN.C 8750 | -6/Archives | Discovered new exit (range 16) 8815 | -6/Archives | Discovered new exit (range 15) 8840 | -6/Archives | Discovered new exit (range 15) 9017 | -6/Archives | Entered Hub_04(d) 9017 | -6/Hub_04(d) | Accompanied by 14 allies 9159 | -6/Hub_04(d) | Discovered new exit (range 16) 9220 | -6/Hub_04(d) | Garrison activated, responded to threat 9247 | -6/Hub_04(d) | Retrieved Zion intel report: Trap Installations 9248 | -6/Hub_04(d) | Zion Light squad teleported in 9267 | -6/Hub_04(d) | Zion Kinetic Resupply teleported in 9287 | -6/Hub_04(d) | Discovered new exit (range 11) 9522 | -6/Hub_04(d) | Network Hub disabled 9529 | -6/Hub_04(d) | Disrupted transfer network 9548 | -6/Hub_04(d) | Murdered 4 allies 9565 | -6/Hub_04(d) | Network Hub disabled 9600 | -6/Hub_04(d) | Lost 4 allies 9607 | -6/Hub_04(d) | Spotted Lightning 9607 | -6/Hub_04(d) | Spotted Lightning 9637 | -6/Hub_04(d) | Spotted Lightning 9651 | -6/Hub_04(d) | Spotted Lightning 9655 | -6/Hub_04(d) | Lost 3 allies 9656 | -6/Hub_04(d) | Spotted Lightning 9661 | -6/Hub_04(d) | System corruption reached 10% 9666 | -6/Hub_04(d) | Spotted Lightning 9668 | -6/Hub_04(d) | Spotted Lightning 9677 | -6/Hub_04(d) | Zion Hacker squad teleported in 9691 | -6/Hub_04(d) | Lost 4 parts (1p2u1w) 9704 | -6/Hub_04(d) | Spotted Lightning 9705 | -6/Hub_04(d) | Spotted Lightning 9717 | -6/Hub_04(d) | Network Hub disabled 9758 | -6/Hub_04(d) | Core integrity fell below 50% 9760 | -6/Hub_04(d) | Lost 3 allies 9765 | -6/Hub_04(d) | Retrieved Zion intel report: Unaware Schematics 9767 | -6/Hub_04(d) | Retrieved Zion intel report: Component Stockpiles 9770 | -6/Hub_04(d) | Retrieved Zion intel report: Component Schematics 9778 | -6/Hub_04(d) | Retrieved Zion intel report: Main Access 9778 | -6/Hub_04(d) | Identified exit to Factory 9784 | -6/Hub_04(d) | Lost 7 parts (1p3n2u1w) 9794 | -6/Hub_04(d) | Core integrity fell below 20% 9796 | -6/Hub_04(d) | Entered Factory 9796 | -5/Factory | Evolved 2 slots: Propulsion x1, Utility x1 9841 | -5/Factory | Zion Fire squad teleported in 9892 | -5/Factory | Discovered new exit (range 10) 9901 | -5/Factory | Identified exit to Upper Caves 9928 | -5/Factory | Fabricated Hyp. Gauss Rifle (x2) 10096 | -5/Factory | First assault squad dispatched 10306 | -5/Factory | Entered Upper Caves 10490 | -5/Upper Caves | Lost 6 parts (2p2n1u1w) 10806 | -5/Upper Caves | Build established: Assassin 11023 | -5/Upper Caves | Learned Factory stockpile data 11281 | -5/Upper Caves | Build established: Skirmisher 11411 | -5/Upper Caves | Discovered new exit (range 15) 11448 | -5/Upper Caves | Attracted the attention of an 0b10 outpost 11448 | -5/Upper Caves | Identified exit to Upper Caves 11450 | -5/Upper Caves | Entered another Upper Caves area 11503 | -5/Upper Caves | Lost 3 parts (1p1n1u) 11660 | -5/Upper Caves | Acquired the password to a Derelict Tinkerer's latest research 11676 | -5/Upper Caves | Found Prototype Special Weapon 11719 | -5/Upper Caves | Identified exit to Warlord 11764 | -5/Upper Caves | Build established: Scavenger-Mutant 11919 | -5/Upper Caves | Lost 4 parts (1p2u1w) 12041 | -5/Upper Caves | Entered Warlord 12526 | -5/Warlord | Identified Molecular Deconstructor 12581 | -5/Warlord | Found Prototype Reactor 12581 | -5/Warlord | Identified Vortex Chain Reactor 12590 | -5/Warlord | Found Prototype Device 12590 | -5/Warlord | Identified Thermal Barrier 12636 | -5/Warlord | Rebuked by Warlord 12649 | -5/Warlord | Attacked by Warlord forces 12649 | -5/Warlord | Spotted C1-NLB(K) 12649 | -5/Warlord | Spotted EV-7A2(K) 12660 | -5/Warlord | Core integrity fell below 50% 12664 | -5/Warlord | Core integrity fell below 20% 12666 | -5/Warlord | Destroyed by Warlord with Compact HERF Cannon Last Messages --------------- 12657_ Entropy package works its way towards Warlord core. 12658_ Carbon-fiber Leg destroyed. 12658_ Lyr. Medium Armor Plating severed. 12659_ Warlord core destabilizing. 12659_ Molecular Deconstructor destroyed. 12660_ Warlord core entropy levels peaking. 12660_ Thermal Barrier severed. 12661_ Warlord core destabilizing. 12661_ Slug penetrates Machine. 12661_ Penetrated by Slug. 12661_ EV-7A2(K) suffers critical hit (Destroy). 12661_ Flexi-carbon Leg destroyed. 12662_ Acquired Arm. Medium Treads. 12662_ Penetrated by HV Slug. 12663_ Warlord core entropy levels peaking. 12663_ Adv. Power Amplifier destroyed. 12664_ Vortex Chain Reactor destroyed. 12664_ HV Slug penetrates Warlord. 12665_ Ion Burst Cannon destroyed. 12665_ Hyp. Gauss Rifle destroyed. Map ----- +----------------------------------------------------+ | | | | | | | | | | | | | | | | | | | | | ?????????????????????????????????????????????????? | | ?????????????????????????????????????????######### | | ?????????????????????????????????????????# """"" " | | ?????????????????????????????????????????# """"" " | | ???????????????????????????????????####??# """"" " | | ??????????????????????????????????#"""""?# | | ??????????????????????????????????#"""""?# | | ??????????????????????????????????#"" " # | | ??????????????????????????????????#""" ###+##### | | ????????????????######????????????#"" " + | | ????????????????# #########????#"""""## | | ????????????????# """""""#????#"""???# """ | | ????????????????# GGg g "#?????#?????# """ | | #######+######### GG % ############## """ | | + g %!K%"## # """ | | ^ + !@W""## # """ | | """" + %K "## + | | """" ######### g % "## # | | """" #???????# g g "## # ##### | | """" #???????#"""""""" "" ## ?# # | | #???????####################+####?# + | | #????????????????########### #????# ## | | ######????????????????# # #????# ## !!! | | #?????????????????????# # ####?# ## | | #?????????????????????# # #?# # !! | | ####??????????????????# + ### ## | | ## ########???????????# # + | | # X# *! #???????????# + # | | # " * #???????????# # # | | + " #???????????# # # | | # " =#???????????########### ^^ ##### | | # =#?????????????????????# #???? | | # ### ########?????????????????????# #???? | | #+######???????????????????????##?####+## ##### | | #??????????????????????? # | | #???????????????######?# # | | #???????????????# #?# # """ | | #???????????????# #?# " "" " # """ | | #???????????????# #?# """""" # """ | | #???????????????# #?# """" # | +----------------------------------------------------+ Best States ------------- Heat Dissipation 78 Energy Generation 70 Energy Capacity 700 Matter Stores 300 Matter Capacity 300 Sight Range 16 Robot Scan Range 15 Terrain Scan Range 20 Terrain Scan Density 210 Power Amplification 30 Base Temperature (-) 200 Armor Coverage 675 Resistance: KI 30 Resistance: TH 50 Phase Shifting 5 Evasion (%) 55 Core Analysis 9 Armor Integrity Analysis 50 Recoil Reduction 5 Particle Charging 20 Offensive Hacking 16 Item Schematics ----------------- Terrain Scan Processor | -6/Hub_04(d) | Z-intel Lrg. Matter Pod | -6/Hub_04(d) | Z-intel Imp. Shield Generator | -6/Hub_04(d) | Z-intel Hyp. Gauss Rifle | -6/Hub_04(d) | Z-intel Core Analyzer | -6/Hub_04(d) | Z-intel Hvy. Laser | -6/Hub_04(d) | Z-intel Thermal Shield | -6/Hub_04(d) | Z-intel Imp. Carbon-fiber Leg | -6/Hub_04(d) | Z-intel Force Field | -6/Hub_04(d) | Z-intel Com. Matter Pod | -6/Hub_04(d) | Z-intel Lyr. Light Armor Plating | -6/Hub_04(d) | Z-intel Flexi-carbon Leg | -6/Hub_04(d) | Z-intel Power Sword | -6/Hub_04(d) | Z-intel Component Analysis Suite | -6/Hub_04(d) | Z-intel Robot Schematics ------------------ K-01 Serf | -6/Hub_04(d) | Z-intel M-22 Extractor | -6/Hub_04(d) | Z-intel H-66 Slayer | -6/Hub_04(d) | Z-intel Fabricated ------------ Hyp. Gauss Rifle | x2 | -5/Factory Repaired ---------- Nothing Studied --------- Lgt. Treads | -9/Materials | Hacked VTOL Module | -9/Materials | Hacked Spread Laser | -6/Factory | Hacked Hvy. Laser | -6/Factory | Hacked Alien Tech Used ----------------- None Achievements -------------- None Challenges ------------ None Game ------ Seed CompactGravmagScreen Manual? 0 Play Time 01:16:31 Cumulative 680.3 hours Start 2026.02.05 @ 04:24:43 End 2026.02.05 @ 08:36:39 Sessions 2 Manual Loads 0 Difficulty Rogue Special Mode None Game No. 845 Rogue 845 Adventurer 0 Explorer 0 Win Type - Total 24 Types 11/1/3/3/2/0/2/2/0/0 Lore% 96 Gallery% 93 Achievement% 82 Wizard Run 0 Options --------- Layout 0 ASCII 0 Keyboard 0 Movement Mouse Keybinds 0 Fullscreen 1 Font 24/Terminus Map View 76x50 Zoom Use 0% Tactical HUD 1 Map Filters NONE Filters NONE Steam 1 RUN: d85bf750-2c79-4bd7-bdb6-594328db8a84